bitfinex/quotes_ETHUSD_20251201
["timestamp","ask_amount","ask_price","bid_price","bid_amount"]
[1764573513975,0.9285,2829.4,2829.3,4.48775675]
[1764573514174,0.9285,2829.4,2829.3,3.75844314]
[1764573518278,0.4596,2829.4,2829.3,3.79378757]
[1764573518479,0.4689,2829.6,2829.3,7.32823071]
[1764573518675,0.002,2829.7,2829.3,10.82732942]
[1764573519003,0.002,2829.7,2829.3,11.28482942]
[1764573519208,0.002,2829.7,2829.4,1.48193975]
[1764573519407,0.002,2829.7,2829.0,0.001]
[1764573519408,0.4689,2829.6,2829.0,0.001]
[1764573519705,0.4689,2829.6,2829.0,3.53580904]
[1764573519706,0.4587,2829.1,2829.0,3.53580904]
[1764573520109,0.4587,2829.1,2829.0,0.001]
[1764573520302,0.9276,2829.1,2829.0,0.001]
[1764573531335,0.002,2829.4,2829.0,0.4888]
[1764573531533,0.4596,2829.1,2829.0,0.001]
[1764573532202,0.9285,2829.1,2829.0,0.001]
[1764573535038,0.4596,2829.1,2829.0,0.001]
[1764573535830,0.4634,2829.3,2829.0,0.001]
[1764573537844,0.4634,2829.3,2829.0,3.53581795]
[1764573538013,0.4634,2829.3,2829.1,0.03534693]
[1764573538424,0.4856,2829.2,2829.1,0.03534693]
[1764573539249,0.4856,2829.2,2829.0,7.0706359]
[1764573539817,0.4856,2829.2,2829.1,0.03534693]
[1764573540016,0.002,2829.4,2829.1,7.57533295]
[1764573540246,0.002,2829.4,2829.3,0.4706]
[1764573540745,0.002,2829.4,2829.3,0.9546]
[1764573542345,0.002,2829.4,2829.3,5.21463725]
[1764573542656,0.002,2829.4,2829.3,11.78017123]
[1764573542946,0.002,2829.4,2829.3,13.41539338]
[1764573545059,0.002,2829.4,2829.3,12.93139338]
[1764573545233,0.002,2829.4,2829.3,13.41539338]
[1764573545420,0.002,2829.4,2829.3,13.15539338]
[1764573545923,0.002,2829.4,2829.3,13.63939338]
[1764573546329,0.002,2829.4,2829.3,13.41539338]
[1764573546729,0.002,2829.4,2829.3,17.40540809]
[1764573548658,0.002,2829.4,2829.3,23.97094207]
[1764573552138,0.002,2829.4,2829.3,17.18140809]
[1764573552353,0.002,2829.4,2829.3,17.40440809]
[1764573554464,0.002,2829.4,2829.3,16.69740809]
[1764573554668,0.002,2829.4,2829.3,3.53444314]
[1764573554669,0.951,2829.4,2829.3,3.53444314]
[1764573554966,0.951,2829.4,2829.3,3.75744314]
[1764573555268,0.002,2829.4,2829.3,4.26338757]
[1764573555768,0.002,2829.4,2829.3,4.74738757]
[1764573555993,0.002,2829.4,2829.3,6.13502631]
[1764573558649,0.002,2829.4,2829.3,7.34462042]
[1764573558866,0.002,2829.4,2829.3,7.30927599]
[1764573562674,0.002,2829.4,2829.3,7.08627599]
[1764573562871,0.002,2829.4,2829.3,7.30927599]
[1764573564579,0.002,2829.4,2829.3,11.0752907]
[1764573565787,0.002,2829.4,2829.3,11.0423907]
[1764573566977,0.5003,2829.4,2829.3,10.1206907]
[1764573567178,0.002,2829.4,2829.3,10.5715907]
[1764573568061,0.002,2829.4,2829.3,17.13712468]
[1764573569792,0.9838,2829.4,2829.3,6.13167599]
[1764573569963,0.9838,2829.4,2829.3,3.75744314]
[1764573574100,0.4983,2829.1,2829.0,0.03634817]
[1764573574296,0.9818,2829.1,2829.0,0.03634817]
[1764573574795,0.9818,2829.1,2829.0,0.001]
[1764573577902,0.9818,2829.1,2829.0,3.75881795]
[1764573578102,0.9818,2829.1,2829.0,0.224]
[1764573578410,0.9818,2829.1,2829.0,0.001]
[1764573578564,0.9818,2829.1,2829.0,3.53581795]
[1764573579512,0.9818,2829.1,2829.0,3.57116612]
[1764573584407,0.4983,2829.1,2829.0,3.57116612]
[1764573584785,0.9818,2829.1,2829.0,3.57116612]
[1764573588919,0.4855,2829.4,2829.0,7.55688407]
[1764573589119,0.4983,2829.1,2829.0,3.53581795]
[1764573589300,0.4855,2829.4,2829.0,7.10598407]
[1764573589502,0.4855,2829.4,2829.0,7.0706359]
[1764573590194,0.4855,2829.4,2829.1,0.03534693]
[1764573590725,0.4983,2829.2,2829.1,0.03534693]
[1764573591019,0.4983,2829.2,2829.1,4.65643063]
[1764573591622,0.002,2829.4,2829.1,8.64202364]
[1764573591823,0.002,2829.4,2829.1,8.60667671]
[1764573592210,0.4855,2829.4,2829.1,8.60667671]
[1764573593726,0.002,2829.4,2829.2,0.03534568]
[1764573593927,0.002,2829.4,2829.3,0.223]
[1764573594299,0.4582,2829.4,2829.3,0.223]
[1764573595128,0.9312,2829.4,2829.3,0.223]
[1764573595697,0.9312,2829.4,2829.3,3.75744314]
[1764573596411,0.002,2829.4,2829.3,11.76231924]
[1764573596924,0.002,2829.4,2829.3,12.23431924]
[1764573597299,0.002,2829.4,2829.3,12.95991335]
[1764573597735,0.002,2829.4,2829.3,16.72592806]
[1764573600842,0.002,2829.4,2829.3,16.25392806]
[1764573601056,0.9312,2829.4,2829.3,3.53444314]
[1764573601534,0.9312,2829.4,2829.0,0.001]
[1764573601734,0.4562,2829.1,2829.0,0.001]
[1764573602098,0.9292,2829.1,2829.0,0.001]
[1764573602738,10.79696146,2829.1,2829.0,0.001]
[1764573603107,0.9292,2829.1,2829.0,0.001]
[1764573603307,4.46389301,2829.1,2829.0,0.001]
[1764573605271,0.9292,2829.1,2829.0,0.001]
[1764573605836,4.46389301,2829.1,2829.0,0.001]
[1764573606323,0.9292,2829.1,2829.0,0.001]
[1764573606517,1.37558182,2829.1,2829.0,0.001]
[1764573607652,0.9292,2829.1,2829.0,0.001]
[1764573625576,0.9312,2829.1,2829.0,0.001]
[1764573626669,4.46589301,2829.1,2829.0,0.001]
[1764573627042,0.9312,2829.1,2829.0,0.001]
[1764573628762,0.4582,2829.1,2829.0,0.001]
[1764573629244,0.9546,2829.1,2829.0,0.001]
[1764573629452,0.4582,2829.1,2829.0,0.001]
[1764573629881,0.9546,2829.1,2829.0,0.001]
[1764573631381,0.4582,2829.1,2829.0,0.001]
[1764573631582,0.9546,2829.1,2829.0,0.001]
[1764573631753,1.47606985,2829.1,2829.0,0.001]
[1764573633949,0.9546,2829.1,2829.0,0.001]
[1764573634251,4.48929301,2829.1,2829.0,0.001]
[1764573634587,4.85946133,2829.1,2829.0,0.001]
[1764573635289,0.91926432,2829.1,2829.0,0.001]
[1764573635474,0.002,2829.1,2829.0,0.001]
[1764573635658,0.467,2829.1,2829.0,0.001]
[1764573636484,0.002,2829.1,2829.0,0.001]
[1764573636783,0.002,2829.1,2829.0,8.20773186]
[1764573637292,0.002,2829.1,2829.0,11.74254981]
[1764573639471,0.002,2829.1,2829.0,19.44422234]
[1764573639681,0.002,2829.4,2829.1,1.13109811]
[1764573639881,0.002,2829.4,2829.3,14.46094295]
[1764573640186,0.002,2829.4,2829.3,16.01874765]
[1764573640380,0.002,2829.4,2829.3,16.50634765]
[1764573640886,0.002,2829.4,2829.3,16.91185165]
[1764573641386,0.002,2829.4,2829.3,20.44629479]
[1764573641895,0.002,2829.8,2829.4,1.13109811]
[1764573642090,0.002,2830.0,2829.8,0.405504]
[1764573642263,0.002,2830.0,2829.9,14.98754695]
[1764573642680,0.002,2830.0,2829.9,15.47514695]
[1764573642885,0.002,2830.0,2829.9,8.49806853]
[1764573643588,0.002,2830.0,2829.9,12.0317623]
[1764573643793,0.002,2830.0,2829.9,20.56439783]
[1764573648798,0.002,2830.0,2829.9,13.36531941]
[1764573648999,0.002,2830.0,2829.9,20.15889383]
[1764573649203,0.002,2830.0,2829.9,13.99382341]
[1764573649394,0.002,2830.0,2829.9,20.56439783]
[1764573651813,0.002,2830.0,2829.9,13.99382341]
[1764573652618,0.002,2830.0,2829.9,20.56439783]
[1764573654497,0.002,2830.0,2829.9,13.99382341]
[1764573656618,0.002,2830.0,2829.9,17.75983812]
[1764573659019,0.002,2830.0,2829.9,24.33041254]
[1764573659311,0.002,2830.0,2829.9,17.75983812]
[1764573659519,0.002,2830.0,2829.9,16.64373412]
[1764573659818,0.002,2830.0,2829.9,16.86673412]
[1764573660391,0.002,2830.0,2829.9,16.83263412]
[1764573661721,0.002,2830.0,2829.9,16.37543412]
[1764573662216,0.002,2830.0,2829.9,3.53369377]
[1764573662217,0.9401,2830.0,2829.9,3.53369377]
[1764573662422,0.9401,2830.0,2829.9,10.32726819]
[1764573663705,0.002,2830.0,2829.9,22.29855143]
[1764573663904,0.002,2830.0,2829.9,24.88188745]
[1764573665399,0.002,2830.0,2829.9,25.28739145]
[1764573670337,0.002,2830.0,2829.9,25.42896708]
[1764573671547,0.4578,2830.0,2829.9,17.40221303]
[1764573671704,0.002,2830.0,2829.9,17.40221303]
[1764573672328,0.9401,2830.0,2829.9,3.75669377]
[1764573672542,0.9401,2830.0,2829.8,0.001]
[1764573672727,0.9852,2829.9,2829.8,3.75777814]
[1764573673115,0.9852,2829.9,2829.8,3.53477814]
[1764573673717,0.9852,2829.9,2829.8,10.10535256]
[1764573674137,0.9852,2829.9,2829.8,3.53477814]
[1764573674510,0.9852,2829.9,2829.8,0.001]
[1764573675019,1.4374655,2829.9,2829.8,0.001]
[1764573675220,0.9852,2829.9,2829.8,0.001]
[1764573681697,11.08946819,2829.9,2829.8,0.001]
[1764573682840,4.51889377,2829.9,2829.8,0.001]
[1764573688941,0.9852,2829.9,2829.8,0.001]
[1764573689281,0.9825,2829.9,2829.8,0.001]
[1764573689856,1.43449448,2829.9,2829.8,0.001]
[1764573690887,0.9825,2829.9,2829.8,0.001]
[1764573691652,0.4911,2829.9,2829.8,0.001]
[1764573692073,0.9825,2829.9,2829.8,0.001]
[1764573694888,0.9845,2829.9,2829.8,0.001]
[1764573698740,0.3128,2829.9,2829.8,0.001]
[1764573698859,0.002,2829.9,2829.8,0.4522]
[1764573699261,0.002,2829.9,2829.8,6.78407609]
[1764573699561,0.002,2829.9,2829.8,8.0105837]
[1764573700387,0.002,2829.9,2829.8,15.31041705]
[1764573700588,0.002,2829.9,2829.8,16.03601116]
[1764573704798,0.002,2829.9,2829.8,16.44151516]
[1764573704970,0.002,2829.9,2829.8,16.58309229]
[1764573717302,0.4961,2829.9,2829.8,7.30083335]
[1764573717603,0.002,2829.9,2829.8,8.01673335]
[1764573717896,0.002,2829.9,2829.8,8.74232746]
[1764573718302,0.002,2829.9,2829.8,8.24942746]
[1764573718602,0.002,2829.9,2829.8,4.48341275]
[1764573718902,0.002,2829.9,2829.8,4.97631275]
[1764573720208,0.4961,2829.9,2829.8,4.48341275]
[1764573721262,0.002,2829.9,2829.8,4.75331275]
[1764573721498,0.002,2829.9,2829.8,7.29977439]
[1764573721701,0.002,2829.9,2829.8,6.78783621]
[1764573722019,0.002,2829.9,2829.8,11.43595492]
[1764573726303,0.002,2829.9,2829.8,11.21295492]
[1764573726503,0.002,2829.9,2829.8,11.43595492]
[1764573726888,0.002,2829.9,2829.8,10.95935492]
[1764573727107,0.002,2829.9,2829.8,10.55385092]
[1764573728110,0.4961,2829.9,2829.8,10.06095092]
[1764573728625,0.002,2829.9,2829.8,10.06095092]
[1764573728928,0.002,2829.9,2829.8,10.55385092]
[1764573729930,0.002,2829.9,2829.8,10.06095092]
[1764573731431,0.002,2829.9,2829.8,9.33535681]
[1764573731629,0.002,2829.9,2829.8,10.06095092]
[1764573732326,0.4961,2829.9,2829.8,10.06095092]
[1764573732702,0.9671,2829.9,2829.8,9.83795092]
[1764573732900,0.9671,2829.9,2829.8,10.06095092]
[1764573733235,0.002,2830.0,2829.8,13.59476956]
[1764573733530,0.002,2830.0,2829.9,8.04474616]
[1764573733696,0.002,2830.0,2829.9,1.71287007]
[1764573733899,0.4961,2830.0,2829.9,11.81076087]
[1764573734630,0.002,2830.0,2829.9,11.81076087]
[1764573734934,0.9671,2830.0,2829.9,15.34445464]
[1764573737913,0.4961,2830.0,2829.9,9.01257855]
[1764573738119,0.4961,2830.0,2829.9,7.52270848]
[1764573738120,0.9671,2830.0,2829.9,7.52270848]
[1764573741935,0.9671,2830.0,2829.8,0.001]
[1764573742141,0.9411,2829.9,2829.8,0.001]
[1764573742309,1.66669411,2829.9,2829.8,0.001]
[1764573742510,1.66669411,2829.9,2829.5,0.001]
[1764573742511,8.73408165,2829.9,2829.5,0.001]
[1764573742738,0.4759,2829.6,2829.5,0.001]
[1764573743115,0.9513,2829.6,2829.5,0.001]
[1764573746144,4.48536841,2829.6,2829.5,0.001]
[1764573746348,11.76583861,2829.6,2829.2,0.001]
[1764573746548,0.72559411,2829.2,2829.0,0.001]
[1764573746852,0.4739,2829.1,2829.0,0.001]
[1764573747145,4.00859301,2829.1,2829.0,0.001]
[1764573747347,4.48399301,2829.1,2829.0,0.001]
[1764573748536,8.01868602,2829.1,2828.9,0.001]
[1764573748711,1.55165712,2829.0,2828.9,0.001]
[1764573749339,5.08647507,2829.0,2828.9,0.001]
[1764573753366,5.49197907,2829.0,2828.9,0.001]
[1764573753917,1.55165712,2829.0,2828.9,0.001]
[1764573754230,0.7498,2829.0,2828.9,0.001]
[1764573756435,4.28461795,2829.0,2828.9,0.001]
[1764573757249,0.7498,2829.0,2828.9,0.001]
[1764573757548,4.28461795,2829.0,2828.9,0.001]
[1764573757746,0.7498,2829.0,2828.9,0.001]
[1764573758551,0.4692,2829.4,2828.9,0.5001]
[1764573758752,0.485,2829.0,2828.9,0.001]
[1764573761473,0.485,2829.0,2828.9,3.53594291]
[1764573761939,0.487,2829.0,2828.9,3.53594291]
[1764573762673,0.9562,2829.0,2828.9,0.001]
[1764573762849,11.06197478,2829.0,2828.9,0.001]
[1764573763167,12.19307289,2829.0,2828.9,0.001]
[1764573764269,5.62211606,2829.0,2828.9,0.001]
[1764573765642,1.90479411,2829.0,2828.9,0.001]
[1764573765878,1.1792,2829.0,2828.9,0.001]
[1764573766045,4.71401795,2829.0,2828.9,0.001]
[1764573766237,5.53889049,2829.0,2828.9,0.001]
[1764573767473,2.00407254,2829.0,2828.9,0.001]
[1764573767780,1.31187254,2829.0,2828.9,0.001]
[1764573767952,0.487,2829.0,2828.9,0.001]
[1764573768153,0.45165183,2829.0,2828.9,0.001]
[1764573768354,0.92085183,2829.0,2828.9,0.001]
[1764573768586,4.45566978,2829.0,2828.9,0.001]
[1764573768751,0.92085183,2829.0,2828.9,0.001]
[1764573769154,0.002,2829.0,2828.9,0.5001]
[1764573769352,0.487,2829.0,2828.9,0.001]
[1764573772286,0.9562,2829.0,2828.9,0.001]
[1764573774507,0.487,2829.0,2828.9,0.001]
[1764573775714,0.002,2829.0,2828.9,0.001]
[1764573776706,0.002,2829.0,2828.9,0.9513]
[1764573776910,0.002,2829.0,2828.9,1.85214122]
[1764573777205,0.002,2829.0,2828.9,0.9513]
[1764573777905,0.002,2829.0,2828.9,0.4615]
[1764573778878,0.4806,2829.0,2828.9,0.001]
[1764573779083,0.9357,2829.0,2828.9,0.001]
[1764573780309,1.1587,2829.0,2828.9,0.001]
[1764573781621,2.70710167,2829.0,2828.9,0.001]
[1764573781808,6.24191962,2829.0,2828.9,0.001]
[1764573782928,6.64742362,2829.0,2828.9,0.001]
[1764573783222,6.24191962,2829.0,2828.9,0.001]
[1764573790315,6.01891962,2829.0,2828.9,0.001]
[1764573790508,6.24191962,2829.0,2828.9,0.001]
[1764573793736,6.01891962,2829.0,2828.9,0.001]
[1764573793942,6.24191962,2829.0,2828.9,0.001]
[1764573796538,0.1915,2828.9,2827.4,0.72559411]
[1764573796709,1.26179411,2828.9,2827.4,0.72559411]
[1764573796905,0.4786,2828.4,2828.3,0.001]
[1764573797539,0.6781,2828.6,2828.3,0.001]
[1764573798035,0.4786,2828.4,2828.3,0.001]
[1764573799929,0.223,2828.6,2828.3,0.001]
[1764573800107,0.6781,2828.6,2828.3,0.001]
[1764573800432,0.223,2828.6,2828.3,0.001]
[1764573800612,0.223,2828.6,2828.3,0.4908]
[1764573801035,0.223,2828.6,2828.3,0.001]
[1764573801723,4.21342071,2828.6,2828.3,0.001]
[1764573801913,0.223,2828.6,2828.3,0.001]
[1764573804537,0.1915,2828.9,2828.5,0.4647]
[1764573804748,0.223,2828.8,2828.5,0.4647]
[1764573805041,0.223,2828.8,2828.5,0.9273]
[1764573805242,0.72759411,2829.0,2828.7,0.4647]
[1764573805455,0.72759411,2829.0,2828.9,0.4647]
[1764573805456,0.002,2829.0,2828.9,0.4647]
[1764573805958,0.002,2829.0,2828.9,0.9273]
[1764573806170,0.002,2829.0,2828.9,4.46224291]
[1764573807238,0.002,2829.0,2828.9,5.91919378]
[1764573807843,0.002,2829.0,2828.9,6.64478789]
[1764573808228,0.002,2829.0,2828.9,6.86778789]
[1764573812524,0.002,2829.0,2828.9,13.43999955]
[1764573812731,0.002,2829.0,2828.9,6.86778789]
[1764573816428,0.002,2829.0,2828.9,13.19938721]
[1764573818540,0.002,2829.0,2828.9,16.96540192]
[1764573829994,0.002,2829.0,2828.9,17.37090592]
[1764573831365,0.002,2829.0,2828.9,17.33649592]
[1764573840499,0.002,2829.0,2828.9,17.32859592]
[1764573840704,0.002,2829.3,2829.1,1.13109811]
[1764573840904,0.002,2829.3,2829.2,8.43750871]
[1764573841503,0.002,2829.3,2829.2,8.89760871]
[1764573842215,0.002,2829.3,2829.2,9.35230871]
[1764573842422,0.002,2829.3,2829.2,12.88687678]
[1764573843200,0.002,2829.6,2829.2,16.65089149]
[1764573843403,1e-08,2830.1,2829.6,1.13109811]
[1764573843610,1e-08,2830.3,2830.2,1.80049811]
[1764573843814,1e-08,2830.3,2830.2,2.02349811]
[1764573844021,0.1858,2831.5,2830.6,0.405504]
[1764573844207,0.1858,2831.5,2831.4,6.33159932]
[1764573844527,0.6439,2831.5,2831.4,10.08642103]
[1764573844687,1.1218,2831.5,2831.4,10.08642103]
[1764573845313,0.6637,2831.5,2831.4,10.08642103]
[1764573846080,1.1218,2831.5,2831.4,3.53182171]
[1764573846281,1.1218,2831.5,2831.4,3.75482171]
[1764573847218,0.1926,2832.0,2831.5,0.72559411]
[1764573847517,0.4581,2831.8,2831.5,0.72559411]
[1764573847724,0.4779,2831.6,2831.5,0.72559411]
[1764573847883,0.002,2831.8,2831.5,0.72559411]
[1764573848325,0.42478927,2831.9,2831.5,0.72559411]
[1764573848623,0.002,2832.1,2831.9,7.06239626]
[1764573848809,0.002,2832.1,2832.0,1.44809411]
[1764573849052,0.1858,2833.0,2832.9,6.33159932]
[1764573850779,0.4779,2832.3,2832.1,3.53094876]
[1764573850984,3.98810373,2832.9,2832.2,0.223]
[1764573851199,0.41739037,2832.8,2832.2,0.223]
[1764573851479,0.4779,2832.3,2832.2,0.223]
[1764573851782,0.4779,2832.3,2832.1,13.61649684]
[1764573851986,0.8069,2832.2,2832.1,10.08554808]
[1764573852154,0.8069,2832.2,2832.1,3.75394876]
[1764573854940,0.4779,2832.2,2832.1,3.75394876]
[1764573855138,0.936,2832.2,2832.1,3.75394876]
[1764573855540,0.4779,2832.2,2832.1,3.75394876]
[1764573855763,0.936,2832.2,2832.1,3.75394876]
[1764573856268,0.936,2832.2,2831.5,2.35790003]
[1764573856269,0.936,2832.2,2831.7,0.223]
[1764573856452,0.4581,2832.1,2831.7,0.223]
[1764573856660,0.4581,2832.1,2831.5,3.53169698]
[1764573856661,0.6637,2831.8,2831.5,3.53169698]
[1764573856872,0.3488,2831.6,2831.5,3.75469698]
[1764573857273,0.8069,2831.6,2831.5,3.79001394]
[1764573857682,0.8069,2831.6,2831.5,3.75469698]
[1764573860960,0.4581,2832.5,2831.7,10.59434262]
[1764573861182,0.4581,2832.4,2831.8,0.03531322]
[1764573861480,0.4581,2832.4,2831.9,0.223]
[1764573861679,0.4581,2832.4,2832.0,0.03531073]
[1764573861980,0.4581,2832.4,2831.9,0.223]
[1764573862181,0.4779,2832.0,2831.9,0.223]
[1764573862383,0.4581,2832.4,2831.9,0.223]
[1764573862683,0.4581,2832.4,2831.9,0.7225]
[1764573862886,0.4581,2832.4,2831.9,0.223]
[1764573863071,0.4581,2832.4,2832.0,7.06214688]
[1764573863595,0.4581,2832.4,2832.0,3.53107344]
[1764573863596,0.4757,2832.1,2832.0,3.53107344]
[1764573863980,0.9556,2832.1,2832.0,3.75407344]
[1764573864883,0.9576,2832.1,2832.0,3.75407344]
[1764573865087,0.9576,2832.1,2831.8,3.53131608]
[1764573865295,0.4784,2832.0,2831.8,0.03531322]
[1764573865480,0.6628,2831.9,2831.8,0.03531322]
[1764573865682,0.002,2832.1,2831.8,0.03531322]
[1764573865683,0.002,2832.1,2831.8,0.52741322]
[1764573865921,0.002,2832.1,2832.0,0.4921]
[1764573866104,0.002,2832.1,2832.0,1.21769411]
[1764573866610,0.4696,2832.1,2832.0,0.72559411]
[1764573867403,0.002,2832.1,2832.0,9.01719299]
[1764573867705,0.002,2832.1,2832.0,7.45962384]
[1764573867912,0.002,2832.1,2832.0,7.86512784]
[1764573869003,0.02775415,2833.0,2832.3,0.6501]
[1764573869206,0.02775415,2833.0,2832.6,0.4921]
[1764573869404,0.02775415,2833.0,2832.7,7.06040172]
[1764573869608,0.51605415,2833.0,2832.8,0.223]
[1764573869980,0.4676,2832.9,2832.8,0.223]
[1764573870508,0.9559,2832.9,2832.8,0.223]
[1764573871009,0.4883,2833.1,2832.8,0.223]
[1764573871323,0.1952,2833.5,2833.3,7.05890656]
[1764573871479,0.1952,2833.5,2833.4,0.223]
[1764573871693,0.6835,2833.5,2833.4,0.223]
[1764573871893,1.1511,2833.5,2833.4,0.223]
[1764573872401,0.6835,2833.8,2833.4,0.223]
[1764573872799,0.4676,2833.5,2833.4,0.223]
[1764573873313,0.9559,2833.5,2833.1,3.52970244]
[1764573873510,0.1952,2833.8,2833.1,0.223]
[1764573873511,0.4676,2833.2,2833.1,0.223]
[1764573873901,0.9559,2833.2,2832.7,0.72559411]
[1764573874104,0.1447,2832.8,2832.7,0.76089611]
[1764573874424,0.1447,2832.8,2832.7,0.98389611]
[1764573875535,0.1447,2832.8,2832.7,4.51409697]
[1764573876030,0.4883,2833.1,2832.7,8.53639783]
[1764573876242,0.4883,2833.1,2832.7,8.50109583]
[1764573876446,0.4883,2833.1,2832.8,0.03530076]
[1764573876744,0.4883,2833.1,2832.7,7.78599583]
[1764573876936,0.6628,2832.8,2832.7,4.47879497]
[1764573877441,1.1511,2832.8,2832.7,4.47879497]
[1764573878450,1.1511,2832.8,2832.7,4.51409697]
[1764573879937,1.1511,2832.8,2832.7,3.53020086]
[1764573880482,1.1511,2832.8,2832.7,10.08108235]
[1764573881323,0.4676,2832.8,2832.7,10.08108235]
[1764573881528,0.4883,2833.1,2832.7,17.14148407]
[1764573881729,0.4883,2833.1,2833.0,6.55088149]
[1764573881968,0.4883,2833.1,2833.0,3.52982703]
[1764573882129,0.9559,2833.1,2833.0,3.52982703]
[1764573882331,0.9559,2833.1,2832.9,3.52993699]
[1764573882531,0.633,2833.0,2832.9,3.52993699]
[1764573883540,0.633,2833.0,2832.7,3.53008704]
[1764573883728,0.4883,2832.9,2832.7,7.0602879]
[1764573883925,0.6628,2832.8,2832.6,0.001]
[1764573884171,0.633,2832.7,2832.6,0.001]
[1764573896010,0.1447,2832.7,2832.6,0.03630325]
[1764573896194,0.4891,2833.0,2832.6,0.03630325]
[1764573896195,0.1816,2832.9,2832.6,0.03630325]
[1764573896545,0.4625,2832.7,2832.6,0.001]
[1764573898003,0.9516,2832.7,2832.6,0.001]
[1764573899418,0.91630173,2832.7,2832.6,0.001]
[1764573900628,0.91830173,2832.7,2832.6,0.001]
[1764573901476,0.002,2832.7,2832.6,0.4694]
[1764573901676,0.002,2832.7,2832.6,6.218963]
[1764573901877,0.002,2832.7,2832.6,6.65977025]
[1764573902339,0.002,2832.7,2832.6,23.28601008]
[1764573902540,0.002,2832.7,2832.6,23.25070683]
[1764573902737,0.002,2833.0,2832.7,0.405504]
[1764573902969,0.002,2833.0,2832.9,13.96981834]
[1764573903375,0.002,2833.0,2832.9,14.45421834]
[1764573904450,0.002,2833.0,2832.9,12.91378813]
[1764573904774,0.002,2833.0,2832.9,13.63938224]
[1764573905968,0.002,2833.0,2832.9,17.40339695]
[1764573906169,0.002,2833.0,2832.9,19.8189561]
[1764573910298,0.002,2833.1,2832.9,19.8189561]
[1764573910299,0.002,2833.1,2833.0,0.405504]
[1764573910506,0.002,2833.1,2833.0,1.39360227]
[1764573910788,0.002,2833.1,2833.0,1.358304]
[1764573910961,0.002,2833.1,2833.0,4.06850155]
[1764573911582,0.002,2833.1,2833.0,7.59832858]
[1764573912170,0.002,2833.1,2833.0,8.32392269]
[1764573913398,0.002,2833.1,2833.0,12.0879374]
[1764573920123,0.002,2833.4,2833.3,8.75112661]
[1764573920327,0.002,2833.4,2833.3,14.15421339]
[1764573920546,0.002,2833.4,2833.3,14.63861339]
[1764573921735,0.002,2833.4,2833.3,14.15421339]
[1764573921937,0.002,2833.4,2833.3,17.68366667]
[1764573924470,0.002,2833.4,2833.3,24.22917216]
[1764573924640,0.002,2833.4,2833.3,16.20363966]
[1764573925365,0.002,2833.4,2833.3,22.74914515]
[1764573925559,0.002,2833.4,2833.3,23.23974515]
[1764573926963,0.002,2833.4,2833.3,22.05774515]
[1764573927165,0.4542,2833.4,2833.3,22.28074515]
[1764573927351,0.002,2833.4,2833.3,22.75494515]
[1764573928574,0.002,2833.4,2833.3,23.24554515]
[1764573928980,0.002,2833.4,2833.3,22.75494515]
[1764573930257,0.002,2833.4,2833.3,23.62774915]
[1764573930461,0.002,2833.7,2833.6,13.81660509]
[1764573930662,0.002,2833.7,2833.6,15.6584656]
[1764573931263,0.002,2833.7,2833.6,19.42248031]
[1764573931669,0.002,2833.7,2833.6,19.88978031]
[1764573931971,0.4588,2834.6,2833.7,1.13109811]
[1764573932169,0.4588,2834.6,2834.5,6.54550549]
[1764573932374,0.4588,2834.6,2834.5,10.07346456]
[1764573932574,0.9116,2834.6,2834.5,10.07346456]
[1764573935975,0.9116,2834.6,2834.2,3.52823271]
[1764573936152,0.4528,2834.3,2834.2,3.52823271]
[1764573936677,0.9116,2834.3,2834.2,10.0737382]
[1764573938459,0.9116,2834.3,2834.2,3.52823271]
[1764573939864,0.9116,2834.3,2834.1,3.52845672]
[1764573940194,0.9116,2834.2,2834.1,3.52845672]
[1764573942707,0.9116,2834.2,2834.1,3.56374129]
[1764573943584,0.9116,2834.2,2833.9,0.223]
[1764573943783,0.4528,2834.0,2833.9,0.223]
[1764573943983,0.4528,2834.0,2833.9,3.75170602]
[1764573944185,0.9116,2834.0,2833.9,3.75170602]
[1764573944385,0.9116,2834.0,2833.9,3.52870602]
[1764573946102,0.9116,2834.0,2833.8,7.05766108]
[1764573946287,0.4588,2834.3,2833.8,9.83964732]
[1764573946490,0.4588,2834.0,2833.8,13.36847786]
[1764573946682,0.4528,2833.9,2833.8,9.83964732]
[1764573947066,0.6233,2833.9,2833.8,9.83964732]
[1764573947288,1.0821,2833.9,2833.8,9.83964732]
[1764573947692,1.0821,2833.9,2833.8,3.52883054]
[1764573947893,1.0821,2833.9,2833.8,0.223]
[1764573948093,1.0821,2833.9,2833.8,3.75183054]
[1764573950076,0.6233,2833.9,2833.8,3.75183054]
[1764573950276,0.4528,2833.9,2833.8,3.75183054]
[1764573950903,1.0821,2833.9,2833.8,3.75183054]
[1764573956230,1.0841,2833.9,2833.8,3.75183054]
[1764573959537,1.0841,2833.9,2833.6,9.84084788]
[1764573959538,1.0841,2833.9,2833.6,0.001]
[1764573959739,0.1955,2833.7,2833.6,0.001]
[1764573960252,0.6525,2833.7,2833.6,3.53007961]
[1764573965057,0.1955,2833.7,2833.6,0.001]
[1764573965836,0.6525,2833.7,2833.6,0.001]
[1764573966871,0.1725,2833.9,2833.6,0.48659079]
[1764573966872,0.002,2833.9,2833.6,0.48659079]
[1764573967184,0.002,2833.9,2833.8,6.31081678]
[1764573967341,0.002,2833.9,2833.8,6.56910508]
[1764573967527,0.002,2833.9,2833.8,10.54823562]
[1764573967727,0.002,2833.9,2833.8,10.51294732]